[Event "Live Chess"]
[Site "Chess.com"]
[Date "2023.05.21"]
[Round "-"]
[White "WelshTiger"]
[Black "booktrunk"]
[Result "1-0"]
[WhiteElo "2360"]
[BlackElo "1287"]
[TimeControl "300"]
[EndTime "1:04:13 PDT"]
[Termination "WelshTiger won by resignation"]

1. e4 {[%clk 0:04:55]} 1... d5 {[%clk 0:04:59.9]} 2. exd5 {[%clk 0:04:53.2]}
2... Qxd5 {[%clk 0:04:59]} 3. Nc3 {[%clk 0:04:52.4]} 3... Qe5+ {[%clk
0:04:57.7]} 4. Be2 {[%clk 0:04:49.6]} 4... Bg4 {[%clk 0:04:54.9]} 5. d4 {[%clk
0:04:46.1]} 5... Qe6 {[%clk 0:04:50.7]} 6. Be3 {[%clk 0:04:44.8]} 6... Bxe2
{[%clk 0:04:49.4]} 7. Ngxe2 {[%clk 0:04:44.7]} 7... c6 {[%clk 0:04:47.9]} 8. d5
{[%clk 0:04:40.5]} 8... Qd6 {[%clk 0:04:46.3]} 9. dxc6 {[%clk 0:04:31.8]} 9...
Qxd1+ {[%clk 0:04:43]} 10. Rxd1 {[%clk 0:04:31.7]} 10... Nxc6 {[%clk 0:04:42]}
11. Nb5 {[%clk 0:04:26.6]} 11... Rc8 {[%clk 0:04:35.7]} 12. O-O {[%clk
0:04:07.4]} 12... a6 {[%clk 0:04:34.8]} 13. Nbc3 {[%clk 0:04:06.1]} 13... e6
{[%clk 0:04:33.2]} 14. a3 {[%clk 0:04:04.8]} 14... Nf6 {[%clk 0:04:31.8]} 15.
Na4 {[%clk 0:03:58.8]} 15... Be7 {[%clk 0:04:28]} 16. Nb6 {[%clk 0:03:57.5]}
16... Rd8 {[%clk 0:04:27.2]} 17. c4 {[%clk 0:03:48.1]} 17... O-O {[%clk
0:04:25.4]} 18. b4 {[%clk 0:03:46.9]} 18... Rxd1 {[%clk 0:04:23.5]} 19. Rxd1
{[%clk 0:03:45.5]} 19... Rd8 {[%clk 0:04:22.6]} 20. Rxd8+ {[%clk 0:03:40.6]}
20... Bxd8 {[%clk 0:04:20.1]} 21. Na4 {[%clk 0:03:39.7]} 21... Ne5 {[%clk
0:04:17.5]} 22. c5 {[%clk 0:03:32.1]} 22... Nc4 {[%clk 0:04:15.6]} 23. Bc1
{[%clk 0:03:31.3]} 23... Ne4 {[%clk 0:04:13.1]} 24. f3 {[%clk 0:03:27.1]} 24...
Nf6 {[%clk 0:04:03]} 25. Kf2 {[%clk 0:03:21.6]} 25... Nd5 {[%clk 0:03:55.3]} 26.
Nec3 {[%clk 0:03:18.6]} 26... Nxc3 {[%clk 0:03:53.9]} 27. Nxc3 {[%clk
0:03:18.5]} 27... Kf8 {[%clk 0:03:52.1]} 28. Ke2 {[%clk 0:03:18.1]} 28... Ke7
{[%clk 0:03:51.3]} 29. Kd3 {[%clk 0:03:16.7]} 29... Ne5+ {[%clk 0:03:49.9]} 30.
Ke4 {[%clk 0:03:15.8]} 30... Nc6 {[%clk 0:03:48.8]} 31. Bf4 {[%clk 0:03:08.1]}
31... f5+ {[%clk 0:03:46.8]} 32. Kd3 {[%clk 0:03:05.9]} 32... h6 {[%clk
0:03:45.4]} 33. Be3 {[%clk 0:02:57]} 33... g6 {[%clk 0:03:42.7]} 34. Bxh6 {[%clk
0:02:53.6]} 34... Kf7 {[%clk 0:03:39.3]} 35. Bc1 {[%clk 0:02:42.4]} 35... Bc7
{[%clk 0:03:37.4]} 36. g3 {[%clk 0:02:41]} 36... Kf6 {[%clk 0:03:36.5]} 37. f4
{[%clk 0:02:35.5]} 37... e5 {[%clk 0:03:34.2]} 38. Nd5+ {[%clk 0:02:34.1]} 1-0

[Event "Live Chess"]
[Site "Chess.com"]
[Date "2023.05.21"]
[Round "-"]
[White "AttackingSnowLeopard"]
[Black "horsechessnut"]
[Result "1-0"]
[WhiteElo "2201"]
[BlackElo "1471"]
[TimeControl "300"]
[EndTime "1:04:14 PDT"]
[Termination "AttackingSnowLeopard won by resignation"]

1. Nf3 {[%clk 0:04:58.5]} 1... d5 {[%clk 0:04:52.2]} 2. e3 {[%clk 0:04:57.2]}
2... Nc6 {[%clk 0:04:50.6]} 3. c4 {[%clk 0:04:56.1]} 3... e6 {[%clk 0:04:48.9]}
4. b3 {[%clk 0:04:54.8]} 4... Be7 {[%clk 0:04:43.8]} 5. Bb2 {[%clk 0:04:54]}
5... Nf6 {[%clk 0:04:42.2]} 6. Be2 {[%clk 0:04:52.9]} 6... h6 {[%clk 0:04:39.3]}
7. O-O {[%clk 0:04:52.4]} 7... b6 {[%clk 0:04:27.8]} 8. d4 {[%clk 0:04:51.6]}
8... Bb7 {[%clk 0:04:26.7]} 9. Nc3 {[%clk 0:04:48.3]} 9... O-O {[%clk
0:04:20.4]} 10. Rc1 {[%clk 0:04:44.8]} 10... Bd6 {[%clk 0:04:13.6]} 11. Nb5
{[%clk 0:04:41.9]} 11... Be7 {[%clk 0:04:09.3]} 12. Ne5 {[%clk 0:04:35.3]} 12...
a6 {[%clk 0:04:05.6]} 13. Nxc6 {[%clk 0:04:34.2]} 13... Bxc6 {[%clk 0:04:03.6]}
14. Nc3 {[%clk 0:04:33.8]} 14... Bb7 {[%clk 0:04:01.2]} 15. Bf3 {[%clk 0:04:29]}
15... c6 {[%clk 0:03:59.8]} 16. Qd3 {[%clk 0:04:24.9]} 16... Bd6 {[%clk
0:03:52.4]} 17. e4 {[%clk 0:04:23]} 17... dxe4 {[%clk 0:03:48.8]} 18. Nxe4
{[%clk 0:04:22.9]} 18... Bf4 {[%clk 0:03:45.4]} 19. Nxf6+ {[%clk 0:04:19.4]}
19... Qxf6 {[%clk 0:03:41.3]} 20. Rcd1 {[%clk 0:04:03.9]} 20... Bc7 {[%clk
0:03:39]} 21. Qe2 {[%clk 0:03:57.9]} 21... Qh4 {[%clk 0:03:30.4]} 22. g3 {[%clk
0:03:56.9]} 22... Qe7 {[%clk 0:03:27.1]} 23. d5 {[%clk 0:03:54.9]} 23... cxd5
{[%clk 0:03:24.4]} 24. cxd5 {[%clk 0:03:53.9]} 24... e5 {[%clk 0:03:12.8]} 25.
Bg2 {[%clk 0:03:39.5]} 25... Bd6 {[%clk 0:03:11.7]} 26. f4 {[%clk 0:03:37.2]}
26... f6 {[%clk 0:03:04.9]} 27. Kh1 {[%clk 0:03:36.3]} 27... Rae8 {[%clk
0:03:01.5]} 28. fxe5 {[%clk 0:03:34.7]} 28... fxe5 {[%clk 0:02:56.8]} 29. Be4
{[%clk 0:03:33.9]} 29... Rxf1+ {[%clk 0:02:45.2]} 30. Rxf1 {[%clk 0:03:32.1]}
30... Rf8 {[%clk 0:02:44.3]} 31. Rxf8+ {[%clk 0:03:27.5]} 31... Qxf8 {[%clk
0:02:43]} 32. Kg2 {[%clk 0:03:27]} 32... Qf7 {[%clk 0:02:37.5]} 33. Qg4 {[%clk
0:03:24.5]} 33... Qf8 {[%clk 0:02:08.2]} 34. Qg6 {[%clk 0:03:22]} 34... Qf7
{[%clk 0:01:53.8]} 35. Qxd6 {[%clk 0:03:17.6]} 35... Qe8 {[%clk 0:01:21.3]} 36.
Qxe5 {[%clk 0:03:14.6]} 36... Qxe5 {[%clk 0:01:19.2]} 37. Bxe5 {[%clk
0:03:14.5]} 37... Bc8 {[%clk 0:01:14]} 38. d6 {[%clk 0:03:11.9]} 38... Bd7
{[%clk 0:01:12.4]} 39. Bd5+ {[%clk 0:03:10.5]} 39... Kf8 {[%clk 0:01:09.3]} 40.
Kf3 {[%clk 0:03:09.4]} 40... b5 {[%clk 0:01:06.8]} 41. Ke4 {[%clk 0:03:07.4]}
41... Ke8 {[%clk 0:01:02.4]} 42. Kd4 {[%clk 0:03:06.8]} 42... Kd8 {[%clk
0:01:00.8]} 43. Kc5 {[%clk 0:03:06.4]} 43... Kc8 {[%clk 0:00:56.9]} 44. Bc6
{[%clk 0:03:04.2]} 44... Bf5 {[%clk 0:00:38.9]} 45. Bxg7 {[%clk 0:03:03]} 45...
Bb1 {[%clk 0:00:36.3]} 46. d7+ {[%clk 0:03:01.2]} 46... Kd8 {[%clk 0:00:32.9]}
47. Bf6+ {[%clk 0:03:00.4]} 1-0

[Event "Live Chess"]
[Site "Chess.com"]
[Date "2023.05.21"]
[Round "-"]
[White "Denz14"]
[Black "Ferrarifan27"]
[Result "0-1"]
[WhiteElo "1036"]
[BlackElo "2074"]
[TimeControl "300"]
[EndTime "1:04:27 PDT"]
[Termination "Ferrarifan27 won by resignation"]

1. e4 {[%clk 0:04:57.2]} 1... e5 {[%clk 0:04:58.1]} 2. Nf3 {[%clk 0:04:54.7]}
2... Nc6 {[%clk 0:04:57.1]} 3. d4 {[%clk 0:04:53.4]} 3... exd4 {[%clk
0:04:55.6]} 4. Nxd4 {[%clk 0:04:52]} 4... Qh4 {[%clk 0:04:52.7]} 5. Nxc6 {[%clk
0:04:45.9]} 5... Qxe4+ {[%clk 0:04:48.2]} 6. Qe2 {[%clk 0:04:43.9]} 6... Qxe2+
{[%clk 0:04:46]} 7. Bxe2 {[%clk 0:04:42.8]} 7... dxc6 {[%clk 0:04:45.1]} 8. O-O
{[%clk 0:04:41.1]} 8... Bf5 {[%clk 0:04:43.9]} 9. c3 {[%clk 0:04:37.9]} 9...
O-O-O {[%clk 0:04:42.6]} 10. Nd2 {[%clk 0:04:35.6]} 10... Nf6 {[%clk 0:04:39.1]}
11. h3 {[%clk 0:04:12]} 11... Bd6 {[%clk 0:04:31.3]} 12. Nc4 {[%clk 0:04:08.4]}
12... Rhe8 {[%clk 0:04:27.1]} 13. Nxd6+ {[%clk 0:04:04.4]} 13... cxd6 {[%clk
0:04:26.3]} 14. Bc4 {[%clk 0:03:50.8]} 14... d5 {[%clk 0:04:19.1]} 15. Bb3
{[%clk 0:03:49.6]} 15... Bd3 {[%clk 0:03:57.3]} 16. Rd1 {[%clk 0:03:44.3]} 16...
Be2 {[%clk 0:03:56.2]} 17. Re1 {[%clk 0:03:40]} 17... Bc4 {[%clk 0:03:52.1]} 18.
Rxe8 {[%clk 0:03:30.6]} 18... Rxe8 {[%clk 0:03:52]} 19. Bg5 {[%clk 0:03:27.3]}
19... Bxb3 {[%clk 0:03:48.2]} 20. axb3 {[%clk 0:03:26]} 20... a6 {[%clk
0:03:46.4]} 21. Kf1 {[%clk 0:03:17.9]} 21... Ne4 {[%clk 0:03:39.5]} 22. Be3
{[%clk 0:03:11.2]} 22... Kc7 {[%clk 0:03:20.5]} 23. c4 {[%clk 0:02:50.4]} 23...
Rd8 {[%clk 0:03:07.2]} 24. Rd1 {[%clk 0:02:36.5]} 24... c5 {[%clk 0:02:43.6]}
25. Rxd5 {[%clk 0:02:25.1]} 25... Rxd5 {[%clk 0:02:41.8]} 26. cxd5 {[%clk
0:02:23.9]} 26... Kd6 {[%clk 0:02:40.9]} 27. f3 {[%clk 0:02:18.4]} 27... Nf6
{[%clk 0:02:32.3]} 28. Bf4+ {[%clk 0:02:14.5]} 28... Kxd5 {[%clk 0:02:29.5]} 29.
Ke2 {[%clk 0:02:11.9]} 29... b5 {[%clk 0:02:26.9]} 30. Kd3 {[%clk 0:02:09.8]}
30... Nd7 {[%clk 0:02:22.5]} 31. g4 {[%clk 0:02:06.3]} 31... g6 {[%clk
0:02:13.5]} 32. h4 {[%clk 0:02:04]} 32... Ne5+ {[%clk 0:02:11.9]} 33. Ke3 {[%clk
0:01:56.8]} 33... c4 {[%clk 0:02:05.9]} 34. bxc4+ {[%clk 0:01:54.4]} 34... Nxc4+
{[%clk 0:02:04.3]} 35. Kd3 {[%clk 0:01:50.9]} 35... Nxb2+ {[%clk 0:02:02.1]} 0-1

[Event "Live Chess"]
[Site "Chess.com"]
[Date "2023.05.21"]
[Round "-"]
[White "ProfPoisson"]
[Black "blunderabit"]
[Result "0-1"]
[WhiteElo "1186"]
[BlackElo "1819"]
[TimeControl "300"]
[EndTime "1:04:36 PDT"]
[Termination "blunderabit won by resignation"]

1. e4 {[%clk 0:04:55.5]} 1... e5 {[%clk 0:04:57.4]} 2. Nf3 {[%clk 0:04:53]} 2...
Nc6 {[%clk 0:04:56.1]} 3. d4 {[%clk 0:04:50.2]} 3... exd4 {[%clk 0:04:53.8]} 4.
Bc4 {[%clk 0:04:47.8]} 4... Nf6 {[%clk 0:04:45.6]} 5. e5 {[%clk 0:04:44.8]} 5...
d5 {[%clk 0:04:32.2]} 6. Bb5 {[%clk 0:04:42.2]} 6... Ne4 {[%clk 0:04:25.5]} 7.
Nxd4 {[%clk 0:04:40.4]} 7... Bd7 {[%clk 0:04:24.3]} 8. Bxc6 {[%clk 0:04:37.1]}
8... bxc6 {[%clk 0:04:22.4]} 9. O-O {[%clk 0:04:35.4]} 9... Bc5 {[%clk
0:04:11.3]} 10. f3 {[%clk 0:04:32.6]} 10... Ng5 {[%clk 0:04:01.7]} 11. Be3
{[%clk 0:04:27.1]} 11... Ne6 {[%clk 0:03:56.1]} 12. f4 {[%clk 0:04:17.5]} 12...
Nxd4 {[%clk 0:03:40.3]} 13. Bxd4 {[%clk 0:04:14.3]} 13... Qe7 {[%clk 0:03:39.1]}
14. Bxc5 {[%clk 0:04:09.7]} 14... Qxc5+ {[%clk 0:03:36.7]} 15. Kh1 {[%clk
0:04:08]} 15... Bf5 {[%clk 0:03:30]} 16. c3 {[%clk 0:03:55.6]} 16... h5 {[%clk
0:03:21.2]} 17. Nd2 {[%clk 0:03:51.9]} 17... h4 {[%clk 0:03:18.3]} 18. Nb3
{[%clk 0:03:44.8]} 18... Qe7 {[%clk 0:03:06]} 19. Nd4 {[%clk 0:03:42.9]} 19...
Qd7 {[%clk 0:03:04.2]} 20. Qa4 {[%clk 0:03:19.5]} 20... Be4 {[%clk 0:02:52]} 21.
Qxc6 {[%clk 0:03:06.4]} 21... Qxc6 {[%clk 0:02:48.1]} 22. Nxc6 {[%clk
0:03:03.4]} 22... h3 {[%clk 0:02:47.7]} 23. Rf2 {[%clk 0:02:55.2]} 23... hxg2+
{[%clk 0:02:43.3]} 24. Kg1 {[%clk 0:02:50.9]} 24... Kd7 {[%clk 0:02:41.2]} 25.
Nb4 {[%clk 0:02:38.9]} 25... a5 {[%clk 0:02:32.7]} 26. Nxd5 {[%clk 0:02:22.2]}
26... Bxd5 {[%clk 0:02:30.2]} 27. Rd1 {[%clk 0:02:22.1]} 27... Kc6 {[%clk
0:02:26.6]} 28. Rfd2 {[%clk 0:02:13.2]} 28... Bxa2 {[%clk 0:02:13.4]} 29. Kxg2
{[%clk 0:01:58.2]} 29... Bb3 {[%clk 0:02:10.7]} 30. Re1 {[%clk 0:01:50]} 30...
Rhd8 {[%clk 0:02:07.3]} 31. Rde2 {[%clk 0:01:44.9]} 31... Rd1 {[%clk 0:02:00.9]}
32. Rxd1 {[%clk 0:01:38.4]} 32... Bxd1 {[%clk 0:01:59.1]} 33. Re1 {[%clk
0:01:36.5]} 33... Bb3 {[%clk 0:01:57]} 34. Re3 {[%clk 0:01:32.4]} 34... Rd8
{[%clk 0:01:54]} 35. Kg3 {[%clk 0:01:29.1]} 35... Rd2 {[%clk 0:01:50.3]} 36. f5
{[%clk 0:01:25.4]} 36... Bc4 {[%clk 0:01:37.1]} 37. h4 {[%clk 0:01:16.3]} 37...
Rd3 {[%clk 0:01:31.3]} 38. Rxd3 {[%clk 0:01:13.1]} 38... Bxd3 {[%clk 0:01:30.1]}
39. Kg4 {[%clk 0:01:10.9]} 39... Kd5 {[%clk 0:01:25.7]} 40. Kf4 {[%clk
0:01:08.7]} 40... Be2 {[%clk 0:01:21.1]} 41. f6 {[%clk 0:00:45.4]} 41... gxf6
{[%clk 0:01:10.3]} 42. exf6 {[%clk 0:00:43.3]} 42... Ke6 {[%clk 0:01:04.2]} 43.
Kg5 {[%clk 0:00:41.7]} 43... a4 {[%clk 0:01:02.4]} 44. h5 {[%clk 0:00:40.3]}
44... Bxh5 {[%clk 0:01:00.8]} 45. Kxh5 {[%clk 0:00:38.3]} 45... Kxf6 {[%clk
0:00:59.8]} 46. Kg4 {[%clk 0:00:37.1]} 46... Ke5 {[%clk 0:00:58.2]} 47. Kf3
{[%clk 0:00:34.7]} 47... Kd5 {[%clk 0:00:56.6]} 48. Ke3 {[%clk 0:00:31.7]} 48...
Kc4 {[%clk 0:00:55.5]} 49. Ke4 {[%clk 0:00:21.8]} 49... Kb3 {[%clk 0:00:53.2]}
50. Kd3 {[%clk 0:00:20.5]} 50... Kxb2 {[%clk 0:00:52]} 0-1

[Event "Live Chess"]
[Site "Chess.com"]
[Date "2023.05.21"]
[Round "-"]
[White "SiDebanks"]
[Black "MarkLim1"]
[Result "0-1"]
[WhiteElo "1340"]
[BlackElo "1695"]
[TimeControl "300"]
[EndTime "1:04:39 PDT"]
[Termination "MarkLim1 won by resignation"]

1. d4 {[%clk 0:04:59.5]} 1... Nf6 {[%clk 0:04:59.1]} 2. Nc3 {[%clk 0:04:59.2]}
2... d5 {[%clk 0:04:58.1]} 3. Bf4 {[%clk 0:04:58.6]} 3... e6 {[%clk 0:04:56.9]}
4. e3 {[%clk 0:04:58]} 4... Bb4 {[%clk 0:04:56.2]} 5. Bd3 {[%clk 0:04:56.2]}
5... c5 {[%clk 0:04:53.8]} 6. dxc5 {[%clk 0:04:55.1]} 6... Bxc3+ {[%clk
0:04:52]} 7. bxc3 {[%clk 0:04:53.7]} 7... Qa5 {[%clk 0:04:51.6]} 8. Qd2 {[%clk
0:04:48.8]} 8... Qxc5 {[%clk 0:04:50.7]} 9. Ne2 {[%clk 0:04:45.3]} 9... O-O
{[%clk 0:04:49.2]} 10. O-O {[%clk 0:04:44.3]} 10... Bd7 {[%clk 0:04:47.3]} 11.
Rfb1 {[%clk 0:04:20.5]} 11... Bc6 {[%clk 0:04:39]} 12. a4 {[%clk 0:04:09.1]}
12... Nbd7 {[%clk 0:04:38]} 13. Bb5 {[%clk 0:03:18.8]} 13... a6 {[%clk 0:04:29]}
14. Bxc6 {[%clk 0:03:13.7]} 14... bxc6 {[%clk 0:04:27.7]} 15. Rb7 {[%clk
0:02:44.4]} 15... e5 {[%clk 0:04:17.1]} 16. Bg3 {[%clk 0:02:24.3]} 16... Ne4
{[%clk 0:04:14.2]} 17. Qe1 {[%clk 0:02:11.6]} 17... Nxg3 {[%clk 0:04:12.6]} 18.
Nxg3 {[%clk 0:02:04.7]} 18... Nf6 {[%clk 0:04:10.5]} 19. Rab1 {[%clk 0:01:52.7]}
19... Ra7 {[%clk 0:04:06.9]} 20. R1b3 {[%clk 0:00:58.7]} 20... Rxb7 {[%clk
0:04:03.7]} 21. Rxb7 {[%clk 0:00:58.6]} 21... Ne8 {[%clk 0:04:01.6]} 22. Ne2
{[%clk 0:00:48.1]} 22... Nd6 {[%clk 0:04:00.2]} 23. Rc7 {[%clk 0:00:41.6]} 23...
Rc8 {[%clk 0:03:56.5]} 24. Rxc8+ {[%clk 0:00:38.7]} 24... Nxc8 {[%clk 0:03:54]}
25. Qb1 {[%clk 0:00:36.9]} 25... Qb6 {[%clk 0:03:51.3]} 26. Qa2 {[%clk
0:00:31.8]} 26... Kf8 {[%clk 0:03:47.5]} 27. h3 {[%clk 0:00:30.5]} 27... Ke7
{[%clk 0:03:45.9]} 28. Qa3+ {[%clk 0:00:29]} 28... Nd6 {[%clk 0:03:44.3]} 29.
Ng3 {[%clk 0:00:21.2]} 29... Ke6 {[%clk 0:03:39.7]} 30. e4 {[%clk 0:00:15.2]}
30... Qb1+ {[%clk 0:03:33.5]} 31. Kh2 {[%clk 0:00:13.6]} 31... Qxc2 {[%clk
0:03:31.8]} 32. exd5+ {[%clk 0:00:12.1]} 32... cxd5 {[%clk 0:03:30.6]} 33. Qb4
{[%clk 0:00:10]} 33... Qxf2 {[%clk 0:03:27.8]} 34. Qb6 {[%clk 0:00:06]} 0-1

[Event "Live Chess"]
[Site "Chess.com"]
[Date "2023.05.21"]
[Round "-"]
[White "LiamClery2020"]
[Black "Missedidea"]
[Result "1-0"]
[WhiteElo "2024"]
[BlackElo "1837"]
[TimeControl "300"]
[EndTime "1:04:41 PDT"]
[Termination "LiamClery2020 won by resignation"]

1. e4 {[%clk 0:04:59.6]} 1... c5 {[%clk 0:04:57.6]} 2. Nf3 {[%clk 0:04:58.8]}
2... d6 {[%clk 0:04:55.2]} 3. Bb5+ {[%clk 0:04:57.9]} 3... Bd7 {[%clk
0:04:53.4]} 4. Bxd7+ {[%clk 0:04:56.8]} 4... Qxd7 {[%clk 0:04:52.6]} 5. O-O
{[%clk 0:04:56.7]} 5... Nc6 {[%clk 0:04:51.1]} 6. Re1 {[%clk 0:04:55.9]} 6... e5
{[%clk 0:04:48.8]} 7. c3 {[%clk 0:04:55.4]} 7... Nf6 {[%clk 0:04:47.5]} 8. d4
{[%clk 0:04:54.9]} 8... O-O-O {[%clk 0:04:43.5]} 9. dxe5 {[%clk 0:04:50.6]} 9...
dxe5 {[%clk 0:04:41.3]} 10. Qxd7+ {[%clk 0:04:48.6]} 10... Rxd7 {[%clk
0:04:39.3]} 11. Be3 {[%clk 0:04:48.5]} 11... h6 {[%clk 0:04:32.5]} 12. Nbd2
{[%clk 0:04:43.4]} 12... g5 {[%clk 0:04:26.5]} 13. Nc4 {[%clk 0:04:38.3]} 13...
Ng4 {[%clk 0:04:21]} 14. h3 {[%clk 0:04:31.9]} 14... Nxe3 {[%clk 0:04:17.8]} 15.
fxe3 {[%clk 0:04:31.8]} 15... f6 {[%clk 0:04:15.9]} 16. Rad1 {[%clk 0:04:30.5]}
16... b5 {[%clk 0:04:11.4]} 17. Na3 {[%clk 0:04:25.5]} 17... a6 {[%clk
0:04:09.1]} 18. Rd5 {[%clk 0:04:20.6]} 18... Be7 {[%clk 0:04:04.5]} 19. Red1
{[%clk 0:04:19.1]} 19... Rhd8 {[%clk 0:04:02.2]} 20. c4 {[%clk 0:04:16.6]} 20...
b4 {[%clk 0:03:58.4]} 21. Nc2 {[%clk 0:04:15]} 21... Na5 {[%clk 0:03:51.6]} 22.
b3 {[%clk 0:04:13.5]} 22... Nb7 {[%clk 0:03:47.4]} 23. g4 {[%clk 0:03:58.8]}
23... Nd6 {[%clk 0:03:44.5]} 24. Rxc5+ {[%clk 0:03:56.4]} 24... Kb7 {[%clk
0:03:41.1]} 25. Rcd5 {[%clk 0:03:54.5]} 25... Kc6 {[%clk 0:03:36.6]} 26. Nxb4+
{[%clk 0:03:53.5]} 26... Kb7 {[%clk 0:03:33.8]} 27. c5 {[%clk 0:03:52.4]} 27...
a5 {[%clk 0:03:21.1]} 28. c6+ {[%clk 0:03:50.5]} 28... Kc7 {[%clk 0:03:18.7]}
29. cxd7 {[%clk 0:03:50.4]} 29... Rxd7 {[%clk 0:03:17.5]} 30. Na6+ {[%clk
0:03:48.4]} 30... Kb6 {[%clk 0:03:15.4]} 31. Nc5 {[%clk 0:03:45.2]} 31... Kc6
{[%clk 0:03:12]} 32. Nxd7 {[%clk 0:03:44.1]} 32... Kxd7 {[%clk 0:03:09.9]} 33.
Nd2 {[%clk 0:03:43.2]} 1-0

[Event "Live Chess"]
[Site "Chess.com"]
[Date "2023.05.21"]
[Round "-"]
[White "Salpingidis"]
[Black "Ocelot32"]
[Result "1-0"]
[WhiteElo "2221"]
[BlackElo "1385"]
[TimeControl "300"]
[EndTime "1:04:43 PDT"]
[Termination "Salpingidis won by resignation"]

1. d4 {[%clk 0:04:51.8]} 1... d5 {[%clk 0:04:57.9]} 2. c4 {[%clk 0:04:51.5]}
2... dxc4 {[%clk 0:04:56.7]} 3. Nc3 {[%clk 0:04:51.4]} 3... a6 {[%clk
0:04:54.8]} 4. a4 {[%clk 0:04:49.9]} 4... Nf6 {[%clk 0:04:53.3]} 5. e3 {[%clk
0:04:48.3]} 5... Bf5 {[%clk 0:04:51.9]} 6. Bxc4 {[%clk 0:04:47.5]} 6... e6
{[%clk 0:04:51.1]} 7. Nf3 {[%clk 0:04:46.5]} 7... Bd6 {[%clk 0:04:48.3]} 8. O-O
{[%clk 0:04:45.7]} 8... O-O {[%clk 0:04:46.8]} 9. Qe2 {[%clk 0:04:44.1]} 9...
Nbd7 {[%clk 0:04:41.3]} 10. e4 {[%clk 0:04:43.5]} 10... Bg6 {[%clk 0:04:39.5]}
11. e5 {[%clk 0:04:42.9]} 11... Nxe5 {[%clk 0:04:32.6]} 12. dxe5 {[%clk
0:04:42.8]} 1-0

[Event "Live Chess"]
[Site "Chess.com"]
[Date "2023.05.21"]
[Round "-"]
[White "Doge_Dandolo"]
[Black "defenderalist"]
[Result "0-1"]
[WhiteElo "1884"]
[BlackElo "1639"]
[TimeControl "300"]
[EndTime "1:04:54 PDT"]
[Termination "defenderalist won by checkmate"]

1. Nf3 {[%clk 0:04:59.4]} 1... e6 {[%clk 0:04:58.9]} 2. c4 {[%clk 0:04:57.6]}
2... d5 {[%clk 0:04:56.8]} 3. g3 {[%clk 0:04:56.3]} 3... Nf6 {[%clk 0:04:55]} 4.
Bg2 {[%clk 0:04:55.7]} 4... Be7 {[%clk 0:04:52.3]} 5. d4 {[%clk 0:04:55.1]} 5...
O-O {[%clk 0:04:49.4]} 6. O-O {[%clk 0:04:54.6]} 6... b6 {[%clk 0:04:48.6]} 7.
Qc2 {[%clk 0:04:53.5]} 7... Bb7 {[%clk 0:04:47.2]} 8. Ne5 {[%clk 0:04:53.1]}
8... Nbd7 {[%clk 0:04:40.4]} 9. f4 {[%clk 0:04:49.9]} 9... Rb8 {[%clk
0:04:31.5]} 10. Nd2 {[%clk 0:04:47.4]} 10... c5 {[%clk 0:04:29.5]} 11. Ndf3
{[%clk 0:04:40.4]} 11... cxd4 {[%clk 0:04:26.8]} 12. Nxd7 {[%clk 0:04:38.1]}
12... Qxd7 {[%clk 0:04:23.3]} 13. Nxd4 {[%clk 0:04:36.6]} 13... dxc4 {[%clk
0:04:17.6]} 14. Bxb7 {[%clk 0:04:34.4]} 14... Rxb7 {[%clk 0:04:00.1]} 15. e3
{[%clk 0:04:31.1]} 15... Bc5 {[%clk 0:03:57.3]} 16. Rd1 {[%clk 0:04:28.7]} 16...
Bxd4 {[%clk 0:03:49.6]} 17. Rxd4 {[%clk 0:04:26]} 17... Qe7 {[%clk 0:03:32.6]}
18. Rxc4 {[%clk 0:04:22]} 18... Nd5 {[%clk 0:03:30.5]} 19. e4 {[%clk 0:04:14.4]}
19... Nf6 {[%clk 0:03:21.3]} 20. Be3 {[%clk 0:04:10.8]} 20... Rd7 {[%clk
0:03:19.7]} 21. Rc1 {[%clk 0:04:06.6]} 21... h6 {[%clk 0:03:18.4]} 22. Kf1
{[%clk 0:04:01.2]} 22... Rfd8 {[%clk 0:03:16.2]} 23. Ke2 {[%clk 0:03:57.1]}
23... Ng4 {[%clk 0:03:09.4]} 24. Rc7 {[%clk 0:03:45.9]} 24... Nxe3 {[%clk
0:03:02.6]} 25. Kxe3 {[%clk 0:03:44.4]} 25... Qd6 {[%clk 0:02:42.1]} 26. Rxd7
{[%clk 0:03:41]} 26... Rxd7 {[%clk 0:02:26.8]} 27. Qc3 {[%clk 0:03:37.5]} 27...
Kh7 {[%clk 0:02:20.2]} 28. Qc2 {[%clk 0:03:31.9]} 28... Kg8 {[%clk 0:02:15.8]}
29. Qc3 {[%clk 0:03:27.4]} 29... Kh7 {[%clk 0:02:14.5]} 30. Rc2 {[%clk
0:03:26.1]} 30... g5 {[%clk 0:02:08.7]} 31. fxg5 {[%clk 0:03:17.9]} 31... hxg5
{[%clk 0:02:06.4]} 32. h4 {[%clk 0:03:15]} 32... Qxg3+ {[%clk 0:02:02.9]} 33.
Ke2 {[%clk 0:03:12.5]} 33... Qxh4 {[%clk 0:01:47.8]} 34. e5 {[%clk 0:03:07.2]}
34... Qe4+ {[%clk 0:01:38.2]} 35. Kf2 {[%clk 0:03:04.8]} 35... Qf4+ {[%clk
0:01:34.1]} 36. Kg2 {[%clk 0:03:02.9]} 36... Kg6 {[%clk 0:01:27.9]} 37. Rf2
{[%clk 0:02:59.5]} 37... Qg4+ {[%clk 0:01:21]} 38. Kh2 {[%clk 0:02:57.7]} 38...
Qh4+ {[%clk 0:01:18.9]} 39. Kg2 {[%clk 0:02:56.2]} 39... Qg4+ {[%clk 0:01:17]}
40. Kh2 {[%clk 0:02:54.9]} 40... Rd1 {[%clk 0:01:10.1]} 41. Qc2+ {[%clk
0:02:47.4]} 41... Kg7 {[%clk 0:01:05.5]} 42. Rg2 {[%clk 0:02:31.7]} 42... Qh4#
{[%clk 0:01:01.5]} 0-1

[Event "Live Chess"]
[Site "Chess.com"]
[Date "2023.05.21"]
[Round "-"]
[White "EdenHazard8"]
[Black "wadsy27"]
[Result "0-1"]
[WhiteElo "1952"]
[BlackElo "2573"]
[TimeControl "300"]
[EndTime "1:04:59 PDT"]
[Termination "wadsy27 won by resignation"]

1. e4 {[%clk 0:04:59.1]} 1... e6 {[%clk 0:04:57.5]} 2. d4 {[%clk 0:04:57.6]}
2... d5 {[%clk 0:04:57]} 3. exd5 {[%clk 0:04:56.2]} 3... exd5 {[%clk 0:04:55.9]}
4. Nf3 {[%clk 0:04:55.7]} 4... Nc6 {[%clk 0:04:55.2]} 5. c3 {[%clk 0:04:54.4]}
5... Bd6 {[%clk 0:04:53]} 6. Bd3 {[%clk 0:04:53.5]} 6... Nge7 {[%clk 0:04:52.1]}
7. h3 {[%clk 0:04:52.8]} 7... Bf5 {[%clk 0:04:51]} 8. O-O {[%clk 0:04:51.6]}
8... Qd7 {[%clk 0:04:46.9]} 9. Re1 {[%clk 0:04:50.2]} 9... O-O-O {[%clk
0:04:45.2]} 10. Ne5 {[%clk 0:04:41.8]} 10... Bxe5 {[%clk 0:04:39.5]} 11. dxe5
{[%clk 0:04:41.7]} 11... Bxd3 {[%clk 0:04:36.7]} 12. Qxd3 {[%clk 0:04:40.7]}
12... h6 {[%clk 0:04:33.8]} 13. Nd2 {[%clk 0:04:35.6]} 13... g5 {[%clk
0:04:30.6]} 14. Nf3 {[%clk 0:04:32.1]} 14... Ng6 {[%clk 0:04:28.6]} 15. Nd4
{[%clk 0:04:28.6]} 15... Ngxe5 {[%clk 0:04:25.3]} 16. Qg3 {[%clk 0:04:27.9]}
16... Nxd4 {[%clk 0:04:22.3]} 17. cxd4 {[%clk 0:04:25.1]} 17... Ng6 {[%clk
0:04:20.6]} 18. Bd2 {[%clk 0:04:22.6]} 18... Rhe8 {[%clk 0:04:18.9]} 19. Rac1
{[%clk 0:04:20.4]} 19... Rxe1+ {[%clk 0:04:17.5]} 20. Bxe1 {[%clk 0:04:20.3]}
20... Re8 {[%clk 0:04:09.7]} 21. Bb4 {[%clk 0:04:15.7]} 21... Nf4 {[%clk
0:04:08.2]} 0-1